Workbook

Sheet Info
C1: Information
C2: =Name_Project -> Tunisie Basse Tension
C5: A propos de l'outil
C7: A quoi sert l’outil?
C8: Permet de calculer la rentabilité des projets PV pour tous les segments de marché PV en Tunisie
C9: Les résultats présentés sous forme de graphiques donnent un aperçu des flux de trésorerie du projet et les paramètres financiers indiquent la rentabilité et les risques des investissements
C10: Permet de tester la sensibilité d’un projet aux changements des conditions-cadres (tarifs d’électricité, coût du système etc.)
C11: Permet de confirmer les résultats et les prévisions de rentabilité d’un projet tels que présentés par des tierces personnes
C13: Pourquoi l'utiliser?
C14: Afin d’optimiser les projets en déterminant la taille de l’installation, le montant de la dette, la durée du crédit ou encore le TRI des capitaux propres
C15: Afin de comprendre les rouages du projet et le modèle commercial utilisé, pour ensuite comprendre les risques éventuels associés au projet (analyse des scénarios)
C16: Pour découvrir des segments de marché réellement attractifs et pouvoir associer des chiffres concrets aux discussions avec les banques et développeurs de projets
C17: Pour bénéficier de la transparence qu’offre l’outil concernant les méthodes de calcul (contrairement aux calculs opaques des outils de planification technique standards)
C19: Guide pour la modélisation des flux de trésorerie
C20: Vous trouverez un guide détaillé sur le site internet du projet, avec une introduction aux notions fondamentales de la modélisation des flux de trésorerie pour les projets PV
C21: Le projet "Enabling PV dans la région MENA" décrit et analyse de manière détaillée les modèles commerciaux les plus appliqués pour le PV en Tunisie. De plus, il établit des calculs de rentabilité pour plusieurs projets-type du secteur résidentiel, commercial et industriel.
C23: Sites internet
C24: Les rapports du projet "Enabling PV" sont disponibles à l'adresse suivante:
C25: https://energypedia.info/wiki/Enabling_PV_in_the_MENA_Region
C26: Les outils de modélisation pour les projets en moyenne et basse tension ainsi que le guide correspondant sont disponibles à l'adresse suivante:
C27: https://energypedia.info/wiki/Dynamic_Cash_Flow_Analysis_of_Photovoltaic_Projects_in_Tunisia
C30: Soutiens et partenaires
C38: Contact
C46: Christian Grundner | F46: Christopher Gross | N46: Abessalem El Khazen
C47: Chef de projet (ingénieur industriel) | F47: Développement du Marché Solaire en Tunisie | N47: Directeur Adjoint, Direction des Energies Renouvelables
C48: Spécialiste du financement des énergies renouvelables | F48: Conseiller en Energie
C50: eclareon GmbH | F50: Deutsche Gesellschaft für Internationale Zusammenarbeit (GIZ) GmbH | N50: Agence Nationale pour la Maîtrise de l'Energie
C51: Giesebrechtstraße 20 | F51: B.P. 753 | N51: Cité Administrative, Av. Japan B.P. 213 Montplaisir, Tunis
C52: D-10629 Berlin | F52: 1080 Tunis-Cedex, Tunisie
N53: Tel: +216 71 906 900
C54: Tel: +49 (0) 30-88 66 740-80 | F54: Tel: +216 71 908 166 | N54: Fax: +216 71 904 624
C55: Mob: +49 (0) 176-820 19 774 | F55: Mob: +216 20377134 | N55: Email: elkhazen@anme.nat.tn
C56: Email: cg@eclareon.com | F56: Email: christopher.gross@giz.de | N56: Web: www.anme.nat.tn
C57: URL: www.eclareon.com | F57: URL: www.giz.de
C60: Clause de non-responsabilité
C62: Le contenu de ce document a été soigneusement préparé et révisé. Cependant, eclareon ne garantit pas l'exactitude, l'exhaustivité ou la qualité des informations fournies, ni que celles-ci soient à jour.
C63: Les actions en responsabilité contre eclareon au titre du dommage matériel ou immatériel causé par l'utilisation ou la non-utilisation des informations fournies ou par l’utilisation d’informations inexactes ou incomplètes,
C64: sont en principe exclues à moins qu'on ne puisse apporter la preuve d'une faute intentionnelle ou d'une négligence grave de la part de la société.

Sheet Résultats
A1: Tableaux d’investissement
A3: Installation PV | H3: Investissement
A4: Taille de l’installation | E4: kWp | F4: =Inputs!G32 -> 4 | H4: Durée du projet | K4: Années | L4: =Inputs!G16 -> 20
A5: Coût d’investissement spécifique | E5: DT/kWp | F5: =Inputs!G21/Inputs!G32 -> 3500 | H5: Subventions | K5: DT | L5: =Inputs!G22 -> 4200
A6: Coût d’investissement total | E6: DT | F6: =Inputs!G21 -> 14000 | H6: Capitaux propres | K6: DT | L6: =Inputs!G117 -> 3059.694185
A7: Coût d’investissement sans subvention | E7: DT | F7: =Inputs!G23 -> 9800 | H7: Montant de la dette | J7: =L7/F7 -> 0.7 | K7: DT | L7: =Inputs!G99 -> 6860
A8: Indice de performance | E8: % | F8: =Inputs!G38 -> 0.85 | H8: Durée du crédit | K8: Années | L8: =Inputs!G110 -> 7
A9: Rendement spécifique | E9: kWh/kWp/a | F9: =Inputs!G40 -> 1600 | H9: Taux d’intérêt | K9: % | L9: =Inputs!H102+Inputs!H127 -> 0.06
A10: Dégradation des performances | E10: % p.a. | F10: =Inputs!G34 -> 0.007 | H10: Taux d'actualisation | K10: % | L10: =Inputs!G120 -> 0.04
A11: Coûts fixes | E11: DT/a | F11: =Inputs!G79 -> 297
A12: Coûts variables | E12: DT/kWh | F12: =Inputs!G86 -> 0
A14: Paramètres de prix | H14: Résultats
A15: Consommation mensuelle | E15: kWh | F15: =Inputs!G45 -> 550 | H15: Valeur Actualisée Nette | K15: DT | L15: =Equity!F34 -> 25545.10053
A16: Production mensuelle moyenne | E16: kWh | F16: =Inputs!G46 -> 489.6292066 | H16: TRI du projet | K16: % | L16: =IF(H16=Cashflows!D58,Cashflows!I58,Cashflows!I59) -> 0.2100392997
A17: Prix de l'électricité appliqué | F17: =Inputs!F57 -> Résidentiel | H17: TRI des capitaux propres | K17: % | L17: =IF(H17=Equity!D31,Equity!F31,Equity!F32) -> 0.3123773873
A18: Économies (avec TVA) | E18: DT/kWh | F18: =Inputs!G65 -> 0.2892892105 | H18: Amortissement | K18: Années | L18: =Equity!F48 -> 5.661539748
A19: TVA | E19: DT/kWh | F19: =Inputs!G63 -> 0.03045955826 | H19: LCOE* (sans subvention) | K19: DT/kWh | L19: =Cashflows!I71 -> 0.2710402973
A20: Augmentation du prix de l’électricité* | E20: % p.a. | F20: =Inputs!L61 -> 0.05 | H20: LCOE (avec subvention) | K20: DT/kWh | L20: =Cashflows!I72 -> 0.2120736641
A21: Inflation | E21: % p.a. | F21: =Inputs!G131 -> 0.04 | H21: Min DSCR** | K21: x | L21: =Financement!F47 -> 1.210899116
A22: * après 5 ans | H22: Min LLCR*** | K22: x | L22: =Financement!F60 -> 1.486597328
H23: * LCOE: Coût Moyen Actualisé de l'Énergie
H24: ** DSCR: Ratio de couverture du service de la dette
H25: *** LLCR: Ratio de couverture de la durée du Prêt
A26: Flux de trésorerie
A65: Flux de trésorerie

Sheet Scénario
C1: Scénarios | D1: Scenarios
C2: =Name_Project -> Tunisie Basse Tension
C5: Rendement spécifique | D5: Specific Yield
C6: Données d’entrée | D6: Input Table
C7: Sélection du scénario | D7: Scenario Selection | F7: Choice | G7: 8 | I7: 1 | J7: =I7+1 -> 2 | K7: 3 | L7: 4 | M7: 5 | N7: 6 | O7: 7 | P7: 8 | Q7: 9 | R7: 10 | S7: 11 | T7: 12 | U7: 13 | V7: 14 | W7: 15
C8: Cas | D8: Case | G8: =OFFSET(H8,0,$G$7,1,1) -> Base Case | I8: Down Case | J8: Down Case | K8: Down Case | L8: Down Case | M8: Down Case | N8: Down Case | O8: Down Case | P8: Base Case | Q8: Up Case | R8: Up Case | S8: Up Case | T8: Up Case | U8: Up Case | V8: Up Case | W8: Up Case
C9: % de changement | D9: % Change | F9: % | G9: =OFFSET(H9,0,$G$7,1,1) -> 0 | I9: -0.35 | J9: -0.3 | K9: -0.25 | L9: -0.2 | M9: -0.15 | N9: -0.1 | O9: -0.05 | P9: 0 | Q9: 0.05 | R9: 0.1 | S9: 0.15 | T9: 0.2 | U9: 0.25 | V9: 0.3 | W9: 0.35
C11: Résultats | D11: Output Table | F11: Changement de rendement | G11: Rendement réel | H11: TRI des capitaux propres | I11: TRI du projet | J11: Amortisse-ment | K11: Valeur actualisée nette | L11: Coût moyen actualisé de l'énergie | M11: Ratio de couverture du service de la dette | N11: Ratio de couverture la durée du prêt | O11: Scénario
F12: =G9 -> 0 | G12: =Inputs!G40 -> 1600 | H12: =IF(OR(Equity!$F$32<0.001,Equity!$F$32>1,ISERROR(Equity!$F$32)=TRUE),#N/A,Equity!$F$32) -> 0.142385304 | I12: =IF(OR(Cashflows!$I$59<0.001,Cashflows!$I$59>1,ISERROR(Cashflows!$I$59)),#N/A,Cashflows!$I$59) -> 0.0630322955 | J12: =IF(ISERROR(Equity!$F$48)=TRUE,#N/A,Equity!$F$48) -> 5.661539748 | K12: =IF(ISERROR(Equity!$F$34)=TRUE,#N/A,Equity!$F$34) -> 25545.10053 | L12: =IF(ISERROR(Cashflows!$I$71)=TRUE,#N/A,Cashflows!$I$71) -> 0.2710402973 | M12: =IF(ISERROR(Financement!$F$47)=TRUE,#N/A,Financement!$F$47) -> 1.210899116 | N12: =IF(ISERROR(Financement!$H$60)=TRUE,#N/A,Financement!$H$60) -> 1.550462342 | O12: =G8 -> Base Case
E13: 1 | F13: -0.35 | G13: 1040 | H13: 0.1183729354 | I13: 0.05684520973 | J13: 8.654427186 | K13: 15501.05703 | L13: 0.4169850728 | M13: 0.8649330111 | N13: 1.11129816 | O13: Down Case
E14: =E13+1 -> 2 | F14: -0.3 | G14: 1120 | H14: 0.1241041407 | I14: 0.05802646165 | J14: 8.173920155 | K14: 17178.05072 | L14: 0.3872004247 | M14: 0.9226209182 | N14: 1.184564698 | O14: Down Case
E15: =E14+1 -> 3 | F15: -0.25 | G15: 1200 | H15: 0.1283198701 | I15: 0.05900408298 | J15: 7.797766109 | K15: 18645.99346 | L15: 0.3613870631 | M15: 0.9731736838 | N15: 1.248740862 | O15: Down Case
E16: 4 | F16: -0.2 | G16: 1280 | H16: 0.131783472 | I16: 0.05987985502 | J16: 7.476579026 | K16: 20025.81487 | L16: 0.3388003716 | M16: 1.02071877 | N16: 1.309085158 | O16: Down Case
E17: 5 | F17: -0.15 | G17: 1360 | H17: 0.1346448137 | I17: 0.06071755041 | J17: 7.183076082 | K17: 21405.63629 | L17: 0.318870938 | M17: 1.068263857 | N17: 1.369429454 | O17: Down Case
E18: 6 | F18: -0.1 | G18: 1440 | H18: 0.1373557142 | I18: 0.06152036908 | J18: 6.772596811 | K18: 22785.4577 | L18: 0.3011558859 | M18: 1.115808943 | N18: 1.42977375 | O18: Down Case
E19: 7 | F19: -0.05 | G19: 1520 | H19: 0.1399315134 | I19: 0.06229112278 | J19: 6.172139077 | K19: 24165.27912 | L19: 0.2853055761 | M19: 1.163354029 | N19: 1.490118046 | O19: Down Case
E20: 8 | F20: 0 | G20: 1600 | H20: 0.142385304 | I20: 0.0630322955 | J20: 5.661539748 | K20: 25545.10053 | L20: 0.2710402973 | M20: 1.210899116 | N20: 1.550462342 | O20: Base Case
E21: 9 | F21: 0.05 | G21: 1680 | H21: 0.144707045 | I21: 0.06373957558 | J21: 5.246033216 | K21: 26912.08982 | L21: 0.2581336165 | M21: 1.248495419 | N21: 1.609005987 | O21: Up Case
E22: 10 | F22: 0.1 | G22: 1760 | H22: 0.1462522207 | I22: 0.06421341195 | J22: 5.259776273 | K22: 27856.18856 | L22: 0.2464002703 | M22: 1.226359691 | N22: 1.613491419 | O22: Up Case
E23: 11 | F23: 0.15 | G23: 1840 | H23: 0.1455711014 | I23: 0.0640042406 | J23: 5.566799338 | K23: 27436.43992 | L23: 0.235687215 | M23: 1.183670758 | N23: 1.566785576 | O23: Up Case
E24: 12 | F24: 0.2 | G24: 1920 | H24: 0.1429692688 | I24: 0.06320965087 | J24: 6.109121638 | K24: 25883.0096 | L24: 0.2258669144 | M24: 1.125742385 | N24: 1.499474602 | O24: Up Case
E25: 13 | F25: 0.25 | G25: 2000 | H25: 0.1401159625 | I25: 0.06234660435 | J25: 6.701601152 | K25: 24266.5809 | L25: 0.2168322378 | M25: 1.072448282 | N25: 1.437561676 | O25: Up Case
E26: 14 | F26: 0.3 | G26: 2080 | H26: 0.1373351596 | I26: 0.06151424925 | J26: 7.139586279 | K26: 22774.58142 | L26: 0.2084925364 | M26: 1.023253725 | N26: 1.380423945 | O26: Up Case
E27: 15 | F27: 0.35 | G27: 2160 | H27: 0.1342498812 | I27: 0.06071022144 | J27: 7.395391294 | K27: 21393.18568 | L27: 0.2007705906 | M27: 0.977703209 | N27: 1.327530832 | O27: Up Case
C30: Coût de l'installation | D30: System Prices
C31: Données d’entrée | D31: Input Table
C32: Sélection du scénario | D32: Scenario Selection | F32: Choice | G32: 8 | I32: 1 | J32: =I32+1 -> 2 | K32: 3 | L32: 4 | M32: 5 | N32: 6 | O32: 7 | P32: 8 | Q32: 9 | R32: 10 | S32: 11 | T32: 12 | U32: 13 | V32: 14 | W32: 15
C33: Cas | D33: Case | G33: =OFFSET(H33,0,$G$32,1,1) -> Base Case | I33: Down Case | J33: Down Case | K33: Down Case | L33: Down Case | M33: Down Case | N33: Down Case | O33: Down Case | P33: Base Case | Q33: Up Case | R33: Up Case | S33: Up Case | T33: Up Case | U33: Up Case | V33: Up Case | W33: Up Case
C34: % de changement | D34: % Change | F34: X * (1 + %) | G34: =OFFSET(H34,0,$G$32,1,1) -> 0 | I34: -0.35 | J34: -0.3 | K34: -0.25 | L34: -0.2 | M34: -0.15 | N34: -0.1 | O34: -0.05 | P34: 0 | Q34: 0.05 | R34: 0.1 | S34: 0.15 | T34: 0.2 | U34: 0.25 | V34: 0.3 | W34: 0.35
C36: Résultats | D36: Output Table | F36: Baisse des prix | G36: Coût de l'installation | H36: TRI des capitaux propres | I36: TRI du projet | J36: Amortisse-ment | K36: Valeur actualisée nette | L36: Coût moyen actualisé de l'énergie | M36: Ratio de couverture du service de la dette | N36: Ratio de couverture la durée du prêt | O36: Scénario
F37: =G34 -> 0 | G37: =Inputs!G23/Inputs!G32 -> 2450 | H37: =IF(OR(Equity!$F$32<0.001,Equity!$F$32>1,ISERROR(Equity!$F$32)=TRUE),#N/A,Equity!$F$32) -> 0.142385304 | I37: =IF(OR(Cashflows!$I$59<0.001,Cashflows!$I$59>1,ISERROR(Cashflows!$I$59)),#N/A,Cashflows!$I$59) -> 0.0630322955 | J37: =IF(ISERROR(Equity!$F$48)=TRUE,#N/A,Equity!$F$48) -> 5.661539748 | K37: =IF(ISERROR(Equity!$F$34)=TRUE,#N/A,Equity!$F$34) -> 25545.10053 | L37: =IF(ISERROR(Cashflows!$I$71)=TRUE,#N/A,Cashflows!$I$71) -> 0.2710402973 | M37: =IF(ISERROR(Financement!$F$47)=TRUE,#N/A,Financement!$F$47) -> 1.210899116 | N37: =IF(ISERROR(Financement!$H$60)=TRUE,#N/A,Financement!$H$60) -> 1.550462342 | O37: =G33 -> Base Case
E38: 1 | F38: -0.35 | G38: 1592.5 | H38: 0.1700440548 | I38: 0.07178008115 | J38: 2.431147638 | K38: 30240.69368 | L38: 0.209683977 | M38: 1.924289924 | N38: 2.460224805 | O38: Down Case
E39: =E38+1 -> 2 | F39: -0.3 | G39: 1715 | H39: 0.1654582204 | I39: 0.07028670446 | J39: 2.773573914 | K39: 29569.89465 | L39: 0.2184491656 | M39: 1.778699963 | N39: 2.274558996 | O39: Down Case
E40: =E39+1 -> 3 | F40: -0.25 | G40: 1837.5 | H40: 0.1611350731 | I40: 0.06889273523 | J40: 3.152531992 | K40: 28899.09563 | L40: 0.2272143542 | M40: 1.652521997 | N40: 2.113648628 | O40: Down Case
E41: 4 | F41: -0.2 | G41: 1960 | H41: 0.1570381285 | I41: 0.06758519122 | J41: 3.557985932 | K41: 28228.29662 | L41: 0.2359795429 | M41: 1.542116277 | N41: 1.972852056 | O41: Down Case
E42: 5 | F42: -0.15 | G42: 2082.5 | H42: 0.1531375337 | I42: 0.06635346578 | J42: 4.030193868 | K42: 27557.4976 | L42: 0.2447447315 | M42: 1.444699465 | N42: 1.848619787 | O42: Down Case
E43: 6 | F43: -0.1 | G43: 2205 | H43: 0.1494085299 | I43: 0.06518878192 | J43: 4.503202355 | K43: 26886.69857 | L43: 0.2535099201 | M43: 1.358106743 | N43: 1.738191104 | O43: Down Case
E44: 7 | F44: -0.05 | G44: 2327.5 | H44: 0.145830333 | I44: 0.0640837946 | J44: 5.053057161 | K44: 26215.89956 | L44: 0.2622751087 | M44: 1.280629044 | N44: 1.639386492 | O44: Down Case
E45: 8 | F45: 0 | G45: 2450 | H45: 0.142385304 | I45: 0.0630322955 | J45: 5.661539748 | K45: 25545.10053 | L45: 0.2710402973 | M45: 1.210899116 | N45: 1.550462342 | O45: Base Case
E46: 9 | F46: 0.05 | G46: 2572.5 | H46: 0.1390583221 | I46: 0.06202899008 | J46: 6.358241572 | K46: 24874.30151 | L46: 0.2798054859 | M46: 1.147810133 | N46: 1.470007158 | O46: Up Case
E47: 10 | F47: 0.1 | G47: 2695 | H47: 0.135836305 | I47: 0.06106932673 | J47: 7.05818563 | K47: 24203.50248 | L47: 0.2885706745 | M47: 1.090456512 | N47: 1.396866081 | O47: Up Case
E48: 11 | F48: 0.15 | G48: 2817.5 | H48: 0.1327078357 | I48: 0.06014936408 | J48: 7.372525889 | K48: 23532.70347 | L48: 0.2973358631 | M48: 1.038090162 | N48: 1.330085099 | O48: Up Case
E49: 12 | F49: 0.2 | G49: 2940 | H49: 0.1295013345 | I49: 0.05926566656 | J49: 7.689396936 | K49: 22861.90447 | L49: 0.3061010517 | M49: 0.9900876749 | N49: 1.268869198 | O49: Up Case
E50: 13 | F50: 0.25 | G50: 3062.5 | H50: 0.1258320726 | I50: 0.05841522149 | J50: 8.008808018 | K50: 22191.10544 | L50: 0.3148662404 | M50: 0.9459253868 | N50: 1.212550569 | O50: Up Case
E51: 14 | F51: 0.3 | G51: 3185 | H51: 0.1222318798 | I51: 0.05759537237 | J51: 8.33004759 | K51: 21520.30642 | L51: 0.323631429 | M51: 0.9051601978 | N51: 1.160564143 | O51: Up Case
E52: 15 | F52: 0.35 | G52: 3307.5 | H52: 0.1182750067 | I52: 0.05680376491 | J52: 8.653898706 | K52: 20849.50739 | L52: 0.3323966176 | M52: 0.8674146524 | N52: 1.112428563 | O52: Up Case
C55: Consommation Mensuelle | D55: Monthly Consumption
C56: Données d’entrée | D56: Input Table
C57: Sélection du scénario | D57: Scenario Selection | F57: Choice | G57: 8 | I57: 1 | J57: =I57+1 -> 2 | K57: 3 | L57: 4 | M57: 5 | N57: 6 | O57: 7 | P57: 8 | Q57: 9 | R57: 10 | S57: 11 | T57: 12 | U57: 13 | V57: 14 | W57: 15
C58: Cas | D58: Case | G58: =OFFSET(H58,0,$G$57,1,1) -> Base Case | I58: Down Case | J58: Down Case | K58: Down Case | L58: Down Case | M58: Down Case | N58: Down Case | O58: Down Case | P58: Base Case | Q58: Up Case | R58: Up Case | S58: Up Case | T58: Up Case | U58: Up Case | V58: Up Case | W58: Up Case
C59: % de changement | D59: % Change | F59: X * (1 + %) | G59: =OFFSET(H59,0,$G$57,1,1) -> 0 | I59: -0.7 | J59: -0.6 | K59: -0.5 | L59: -0.4 | M59: -0.3 | N59: -0.2 | O59: -0.1 | P59: 0 | Q59: 0.1 | R59: 0.2 | S59: 0.3 | T59: 0.4 | U59: 0.5 | V59: 0.6 | W59: 0.7
C61: Résultats | D61: Output Table | F61: % de changement | G61: Con-sommation mensuelle | H61: TRI des capitaux propres | I61: TRI du projet | J61: Amortisse-ment | K61: Valeur actualisée nette | L61: Ratio de couverture du service de la dette | M61: Ratio de couverture la durée du prêt | N61: Scénario
F62: =G59 -> 0 | G62: =Inputs!G45 -> 550 | H62: =IF(OR(Equity!$F$32<0.001,Equity!$F$32>1,ISERROR(Equity!$F$32)=TRUE),#N/A,Equity!$F$32) -> 0.142385304 | I62: =IF(OR(Cashflows!$I$59<0.001,Cashflows!$I$59>1,ISERROR(Cashflows!$I$59)),#N/A,Cashflows!$I$59) -> 0.0630322955 | J62: =IF(ISERROR(Equity!$F$48)=TRUE,#N/A,Equity!$F$48) -> 5.661539748 | K62: =IF(ISERROR(Equity!$F$34)=TRUE,#N/A,Equity!$F$34) -> 25545.10053 | L62: =IF(ISERROR(Financement!$F$47)=TRUE,#N/A,Financement!$F$47) -> 1.210899116 | M62: =IF(ISERROR(Financement!$H$60)=TRUE,#N/A,Financement!$H$60) -> 1.550462342 | N62: =G58 -> Base Case
E63: 1 | F63: -0.7 | G63: 165 | K63: -13190.86264 | L63: -0.4248106924 | M63: -0.1419007276 | N63: Down Case
E64: =E63+1 -> 2 | F64: -0.6 | G64: 220 | K64: -10633.52456 | L64: -0.1715839043 | M64: -0.03263867913 | N64: Down Case
E65: =E64+1 -> 3 | F65: -0.5 | G65: 275 | I65: 0.0190525121 | K65: -7096.199007 | L65: 0.06963865251 | M65: 0.1181930841 | N65: Down Case
E66: 4 | F66: -0.4 | G66: 330 | H66: 0.02562206323 | I66: 0.03590273942 | K66: -2007.760621 | L66: 0.2317554954 | M66: 0.3348209113 | N66: Down Case
E67: 5 | F67: -0.3 | G67: 385 | H67: 0.06537842911 | I67: 0.04693425007 | J67: 14.35579714 | K67: 4850.07087 | L67: 0.4499162606 | M67: 0.6265039498 | N67: Down Case
E68: 6 | F68: -0.2 | G68: 440 | H68: 0.1056294234 | I68: 0.05483545062 | J68: 9.860003657 | K68: 12874.34994 | L68: 0.7084076978 | M68: 0.9569178334 | N68: Down Case
E69: 7 | F69: -0.1 | G69: 495 | H69: 0.1339970986 | I69: 0.06053841213 | J69: 7.423396554 | K69: 21105.42297 | L69: 0.9976723449 | M69: 1.317504418 | N69: Down Case
E70: 8 | F70: 0 | G70: 550 | H70: 0.142385304 | I70: 0.0630322955 | J70: 5.661539748 | K70: 25545.10053 | L70: 1.210899116 | M70: 1.550462342 | N70: Base Case
E71: 9 | F71: 0.1 | G71: 605 | H71: 0.1489465572 | I71: 0.06504540983 | J71: 4.563177647 | K71: 29571.09156 | L71: 1.348310677 | M71: 1.725528574 | N71: Up Case
E72: 10 | F72: 0.2 | G72: 660 | H72: 0.1547746262 | I72: 0.06686880245 | J72: 3.811093262 | K72: 33597.08259 | L72: 1.485722238 | M72: 1.900594807 | N72: Up Case
E73: 11 | F73: 0.3 | G73: 715 | H73: 0.1596364329 | I73: 0.06841286466 | J73: 3.276844769 | K73: 37315.10603 | L73: 1.612622521 | M73: 2.062269373 | N73: Up Case
E74: 12 | F74: 0.4 | G74: 770 | H74: 0.1636728523 | I74: 0.06970932616 | J74: 2.910866815 | K74: 40673.4704 | L74: 1.72724724 | M74: 2.208304522 | N74: Up Case
E75: 13 | F75: 0.5 | G75: 825 | H75: 0.1660590339 | I75: 0.07048152501 | J75: 2.70461199 | K75: 42782.8042 | L75: 1.799241153 | M75: 2.300026813 | N75: Up Case
E76: 14 | F76: 0.6 | G76: 880 | H76: 0.1676028398 | I76: 0.07098329368 | J76: 2.583900847 | K76: 44198.98195 | L76: 1.847576878 | M76: 2.3616079 | N76: Up Case
E77: 15 | F77: 0.7 | G77: 935 | H77: 0.1691030047 | I77: 0.07147245681 | J77: 2.475021503 | K77: 45615.1597 | L77: 1.895912604 | M77: 2.423188987 | N77: Up Case
C81: Augmentation du prix de l'électricité | D81: Electricity Price Escalation
C82: Données d’entrée | D82: Input Table
C83: Sélection du scénario | D83: Scenario Selection | F83: Choice | G83: 8 | I83: 1 | J83: =I83+1 -> 2 | K83: 3 | L83: 4 | M83: 5 | N83: 6 | O83: 7 | P83: 8 | Q83: 9 | R83: 10 | S83: 11 | T83: 12 | U83: 13 | V83: 14 | W83: 15
C84: Cas | D84: Case | G84: =OFFSET(H84,0,$G$83,1,1) -> Base Case | I84: Down Case | J84: Down Case | K84: Down Case | L84: Down Case | M84: Down Case | N84: Down Case | O84: Down Case | P84: Base Case | Q84: Up Case | R84: Up Case | S84: Up Case | T84: Up Case | U84: Up Case | V84: Up Case | W84: Up Case
C85: Évolution des prix | D85: Price Escalation | F85: % | G85: =OFFSET(H85,0,$G$83,1,1) -> 0.05 | I85: -0.02 | J85: -0.01 | K85: 0 | L85: 0.01 | M85: 0.02 | N85: 0.03 | O85: 0.04 | P85: 0.05 | Q85: 0.06 | R85: 0.07 | S85: 0.08 | T85: 0.09 | U85: 0.1 | V85: 0.11 | W85: 0.12
C88: Résultats | D88: Output Table
F89: Évolution des prix | G89: TRI des capitaux propres | H89: TRI du projet | I89: Amortisse-ment | J89: Valeur actualisée nette | K89: Ratio de couverture du service de la dette | L89: Ratio de couverture la durée du prêt | M89: Scénario
F90: =G85 -> 0.05 | G90: =IF(OR(Equity!$F$31<0.001,Equity!$F$31>1,ISERROR(Equity!$F$31)=TRUE),#N/A,Equity!$F$31) -> 0.3123773873 | H90: =IF(OR(Cashflows!$I$59<0.001,Cashflows!$I$59>1,ISERROR(Cashflows!$I$59)),#N/A,Cashflows!$I$59) -> 0.0630322955 | I90: =IF(ISERROR(Equity!$F$48)=TRUE,#N/A,Equity!$F$48) -> 5.661539748 | J90: =IF(ISERROR(Equity!$F$34)=TRUE,#N/A,Equity!$F$34) -> 25545.10053 | K90: =IF(ISERROR(Financement!$F$47)=TRUE,#N/A,Financement!$F$47) -> 1.210899116 | L90: =IF(ISERROR(Financement!$H$60)=TRUE,#N/A,Financement!$H$60) -> 1.550462342 | M90: =G84 -> Base Case
E91: 1 | F91: -0.02 | G91: 0.2639256418 | H91: 0.05460306756 | I91: 5.815634923 | J91: 12589.55378 | K91: 1.210899116 | L91: 1.497103549 | M91: Down Case
E92: =E91+1 -> 2 | F92: -0.01 | G92: 0.2711072028 | H92: 0.05571569395 | I92: 5.789367685 | J92: 13992.40196 | K92: 1.210899116 | L92: 1.504578717 | M92: Down Case
E93: =E92+1 -> 3 | F93: 0 | G93: 0.2781865776 | H93: 0.05685942729 | I93: 5.764739516 | J93: 15521.77418 | K93: 1.210899116 | L93: 1.512103057 | M93: Down Case
E94: 4 | F94: 0.01 | G94: 0.2851743281 | H94: 0.05803400844 | I94: 5.741601642 | J94: 17190.06253 | K94: 1.210899116 | L94: 1.519676569 | M94: Down Case
E95: 5 | F95: 0.02 | G95: 0.2920796692 | H95: 0.05923908095 | I95: 5.719822765 | J95: 19010.87128 | K95: 1.210899116 | L95: 1.527299254 | M95: Down Case
E96: 6 | F96: 0.03 | G96: 0.2989106715 | H96: 0.06047419416 | I96: 5.699286568 | J96: 20999.13042 | K96: 1.210899116 | L96: 1.534971111 | M96: Down Case
E97: 7 | F97: 0.04 | G97: 0.3056744754 | H97: 0.06173880745 | I97: 5.679889644 | J97: 23171.21922 | K97: 1.210899116 | L97: 1.54269214 | M97: Down Case
E98: 8 | F98: 0.05 | G98: 0.3123773873 | H98: 0.0630322955 | I98: 5.661539748 | J98: 25545.10053 | K98: 1.210899116 | L98: 1.550462342 | M98: Base Case
E99: 9 | F99: 0.06 | G99: 0.3190250337 | H99: 0.06435395442 | I99: 5.644154331 | J99: 28140.46665 | K99: 1.210899116 | L99: 1.558281715 | M99: Up Case
E100: 10 | F100: 0.07 | G100: 0.3256224334 | H100: 0.06570300873 | I100: 5.6276593 | J100: 30978.89769 | K100: 1.210899116 | L100: 1.566150262 | M100: Up Case
E101: 11 | F101: 0.08 | G101: 0.3321740806 | H101: 0.06707861873 | I101: 5.611987961 | J101: 34084.03341 | K101: 1.210899116 | L101: 1.57406798 | M101: Up Case
E102: 12 | F102: 0.09 | G102: 0.3386840284 | H102: 0.06847988849 | I102: 5.597080121 | J102: 37481.75962 | K102: 1.210899116 | L102: 1.582034871 | M102: Up Case
E103: 13 | F103: 0.1 | G103: 0.3451559126 | H103: 0.06990587393 | I103: 5.58288131 | J103: 41200.41017 | K103: 1.210899116 | L103: 1.590050934 | M103: Up Case
E104: 14 | F104: 0.11 | G104: 0.3515930235 | H104: 0.07135559105 | I104: 5.56934212 | J104: 45270.98583 | K104: 1.210899116 | L104: 1.598116169 | M104: Up Case
E105: 15 | F105: 0.12 | G105: 0.3579983652 | H105: 0.07282802412 | I105: 5.556417629 | J105: 49727.39121 | K105: 1.210899116 | L105: 1.606230577 | M105: Up Case
C108: Montant de la dette | D108: Debt Amount
C109: Données d’entrée | D109: Input Table
C110: Sélection du scénario | D110: Scenario Selection | F110: Choice | G110: 8 | I110: 1 | J110: =I110+1 -> 2 | K110: 3 | L110: 4 | M110: 5 | N110: 6 | O110: 7 | P110: 8 | Q110: 9 | R110: 10 | S110: 11 | T110: 12 | U110: 13 | V110: 14 | W110: 15
C111: Cas | D111: Case | G111: =OFFSET(H111,0,$G$110,1,1) -> Base Case | I111: Down Case | J111: Down Case | K111: Down Case | L111: Down Case | M111: Down Case | N111: Down Case | O111: Down Case | P111: Base Case | Q111: Up Case | R111: Up Case | S111: Up Case | T111: Up Case | U111: Up Case | V111: Up Case | W111: Up Case
C112: % de changement | D112: % Change | F112: % | G112: =OFFSET(H112,0,$G$110,1,1) -> 0 | I112: -0.7 | J112: -0.6 | K112: -0.5 | L112: -0.4 | M112: -0.3 | N112: -0.2 | O112: -0.1 | P112: 0 | Q112: 0.1 | R112: 0.2 | S112: 0.3 | T112: 0.4 | U112: 0.5 | V112: 0.6 | W112: 0.7
C114: Résultats | D114: Output Table | F114: Montant de la dette | G114: TRI des capitaux propres | H114: TRI du projet | I114: Amortisse-ment | J114: Valeur actualisée nette | K114: Coût moyen actualisé de l'énergie | L114: Ratio de couverture du service de la dette | M114: Ratio de couverture la durée du prêt | N114: Scénario
F115: =SUM(Inputs!G99:G99) -> 6860 | G115: =IF(OR(Equity!$F$32<0.001,Equity!$F$32>1,ISERROR(Equity!$F$32)=TRUE),#N/A,Equity!$F$32) -> 0.142385304 | H115: =IF(OR(Cashflows!$I$59<0.001,Cashflows!$I$59>1,ISERROR(Cashflows!$I$59)),#N/A,Cashflows!$I$59) -> 0.0630322955 | I115: =IF(Equity!$F$48<=0,#N/A,IF(ISERROR(Equity!F48),#N/A,Equity!$F$48)) -> 5.661539748 | J115: =IF(ISERROR(Equity!$F$34)=TRUE,#N/A,Equity!$F$34) -> 25545.10053 | K115: =IF(ISERROR(Cashflows!$I$71)=TRUE,#N/A,Cashflows!$I$71) -> 0.2710402973 | L115: =IF(ISERROR(Financement!$F$47)=TRUE,#N/A,Financement!$F$47) -> 1.210899116 | M115: =IF(ISERROR(Financement!$H$60)=TRUE,#N/A,Financement!$H$60) -> 1.550462342 | N115: =G111 -> Base Case
E116: 1 | F116: 2058 | G116: 0.1049151777 | H116: 0.06321526012 | I116: 5.99639679 | J116: 26053.27424 | K116: 0.2551854764 | L116: 4.036330385 | M116: 5.168207805 | N116: Down Case
E117: =E116+1 -> 2 | F117: 2744 | G117: 0.1082105458 | H117: 0.06318901218 | I117: 5.970980916 | J117: 25980.67799 | K117: 0.2574141314 | L117: 3.027247789 | M117: 3.876155854 | N117: Down Case
E118: =E117+1 -> 3 | F118: 3430 | G118: 0.1119291403 | H118: 0.06316280112 | I118: 5.941257806 | J118: 25908.08176 | K118: 0.2596551337 | L118: 2.421798231 | M118: 3.100924683 | N118: Down Case
E119: 4 | F119: 4116 | G119: 0.1161716218 | H119: 0.06313662684 | I119: 5.906031187 | J119: 25835.48551 | K119: 0.2619083385 | L119: 2.018165193 | M119: 2.584103903 | N119: Down Case
E120: 5 | F120: 4802 | G120: 0.12107748 | H120: 0.06311048923 | I120: 5.863616557 | J120: 25762.88926 | K120: 0.2641736011 | L120: 1.729855879 | M120: 2.214946202 | N120: Down Case
E121: 6 | F121: 5488 | G121: 0.1268476459 | H121: 0.06308438821 | I121: 5.811563863 | J121: 25690.29303 | K121: 0.2664507775 | L121: 1.513623895 | M121: 1.938077927 | N121: Down Case
E122: 7 | F122: 6174 | G122: 0.1337862884 | H122: 0.06305832367 | I122: 5.746166892 | J122: 25617.69678 | K122: 0.2687397239 | L122: 1.345443462 | M122: 1.722735935 | N122: Down Case
E123: 8 | F123: 6860 | G123: 0.142385304 | H123: 0.0630322955 | I123: 5.661539748 | J123: 25545.10053 | K123: 0.2710402973 | L123: 1.210899116 | M123: 1.550462342 | N123: Base Case
E124: 9 | F124: 7546 | G124: 0.1535172958 | H124: 0.0630063036 | I124: 5.547738347 | J124: 25472.50428 | K124: 0.2733523549 | L124: 1.100817378 | M124: 1.40951122 | N124: Up Case
E125: 10 | F125: 8232 | G125: 0.16896283 | H125: 0.06298034788 | I125: 5.386534429 | J125: 25399.90806 | K125: 0.2756757548 | L125: 1.009082596 | M125: 1.292051951 | N125: Up Case
E126: 11 | F126: 8918 | G126: 0.1884948342 | H126: 0.06295442824 | I126: 5.140519736 | J126: 25327.31181 | K126: 0.2780103554 | L126: 0.9314608582 | M126: 1.19266334 | N126: Up Case
E127: 12 | F127: 9604 | G127: 0.2154456775 | H127: 0.06292854457 | I127: 4.633649976 | J127: 25254.71556 | K127: 0.280356016 | L127: 0.8649279397 | M127: 1.107473101 | N127: Up Case
E128: 13 | F128: 10290 | G128: 0.2372528698 | H128: 0.06291090672 | J128: 25211.72351 | K128: 0.2816790921 | L128: 0.8320033044 | M128: 1.065315661 | N128: Up Case
E129: 14 | F129: 10976 | G129: 0.2369301214 | H129: 0.06289656742 | J129: 25203.65264 | K129: 0.2817891592 | L129: 0.8313825789 | M129: 1.06452087 | N129: Up Case
E130: 15 | F130: 11662 | G130: 0.2366092488 | H130: 0.06288223914 | J130: 25195.58176 | K130: 0.2818992263 | L130: 0.8307627789 | M130: 1.063727264 | N130: Up Case

Sheet Inputs
C1: Assumptions | D1: Hypothèses
D2: =Name_Project -> Tunisie Basse Tension
C5: Timing | D5: Délais
C6: Start | D6: Départ
C7: Model Start Date | D7: Date de début de la modélisation | E7: Date | G7: 2015-01-01
C9: Construction | D9: Construction
C10: Start | D10: Début | E10: Date | G10: =Model_Start -> 2015-01-01
D11: Durée | E11: Mois | G11: 3
C12: End | D12: Fin | E12: Date | G12: =EOMONTH(G10,G11-1) -> 2015-03-31
C14: Operations | D14: Exploitation
C15: Start | D15: Début | E15: Date | G15: =G12+1 -> 2015-04-01
C16: Base Case Duration | D16: Durée de l'hypothèse de référence | E16: Ans | G16: 20
C17: End | D17: Fin | E17: Date | G17: =EOMONTH(G15,G16*Months_Yr-1) -> 2035-03-31
C19: Construction | D19: Construction
C20: System Cost | D20: Coût de l'installation
C21: Turnkey System Cost | D21: Coût de l'installation | E21: DT | G21: 14000
D22: Subvention appliquée | E22: DT | G22: 4200
D23: Coût de l'installation appliqué | E23: DT | F23: =Scénario!G34 -> 0 | G23: =(1+F23)*(G21-G22) -> 9800
C25: Payment Profile | D25: Liste des dépenses
C26: Construction Month | D26: Mois de construction | E26: DT | G26: Total | H26: 1 | I26: =H26+1 -> 2 | J26: =I26+1 -> 3 | K26: =J26+1 -> 4 | L26: =K26+1 -> 5 | M26: =L26+1 -> 6
C27: Relative Costs | D27: Coûts relatifs | E27: DT | G27: =SUM(H27:M27) -> 1 | H27: 0.8 | I27: 0 | J27: 0.2 | K27: 0 | L27: 0 | M27: 0
C30: Operations | D30: Exploitation
C31: Generation | D31: Production
C32: System Size | D32: Taille de l'installation | E32: kWp | G32: 4
C34: Degradation | D34: Dégradation des performances | E34: % p.a. | G34: 0.007
C35: Overall Efficiency | D35: Rendement global | E35: x | G35: 1
C37: Yield | D37: Rendement | E37: kWh/qm/a | G37: 1882
C38: Performance Ratio | D38: Ratio de performance | E38: x | G38: 0.85
C39: Specific Yield | D39: Rendement spécifique | E39: kWh/kWp/a | G39: =G37*G38 -> 1599.7
C40: Applied Yield | D40: Rendement appliqué | E40: kWh/kWp/a | F40: =Scénario!G9 -> 0 | G40: =ROUND(G39*(1+F40),0) -> 1600
C42: Electricity Savings | D42: Economies d'électricité
C43: Consumption without PV | D43: Consommation sans PV
C44: Monthly Consumption | D44: Consommation mensuelle | E44: kWh | G44: 550
C45: Applied Consumption | D45: Consommation appliquée | E45: kWh | F45: =Scénario!G59 -> 0 | G45: =G44*(1+F45) -> 550
C46: Average Monthly Generation | D46: Production mensuelle | G46: =Expl!I23/G16/12 -> 489.6292066
C48: Distribution among price ranges | D48: Répartition par tranche de prix | G48: Tranche de Prix
C49: Lower Limit | D49: Limite inférieure | E49: kWh | G49: 0 | H49: 200 | I49: 300 | J49: 500 | L49: 0 | M49: 0
C50: Upper Limit | D50: Limite supérieure | E50: kWh | G50: =IF(AND(G49=MAX($G$49:$M$49),MAX($G$49:$M$49)<$G$45),$G$45,H49) -> 200 | H50: 300 | I50: 500 | J50: 550 | K50: 0 | L50: 0 | M50: 0
C51: Distribution of Consumption | D51: Répartition de la consommation | E51: kWh | G51: =IF($G$45<=G49,0,IF($G$45>=G50,G50-G49,$G$45-G49)) -> 200 | H51: 100 | I51: 200 | J51: 50 | K51: 0 | L51: 0 | M51: 0
C52: Distribution of PV generation | D52: Répartition de la production élec. | E52: kWh | F52: =SUM(G52:M52) -> 489.6292066 | G52: =IF(($G$46-SUM(H51:$M$51))>G51,G51,IF($G$46-SUM(H51:$M$51)>0,$G$46-SUM(H51:$M$51),0)) -> 139.6292066 | H52: =IF(($G$46-SUM(I51:$M$51))>H51,H51,IF($G$46-SUM(I51:$M$51)>0,$G$46-SUM(I51:$M$51),0)) -> 100 | I52: =IF(($G$46-SUM(J51:$M$51))>I51,I51,IF($G$46-SUM(J51:$M$51)>0,$G$46-SUM(J51:$M$51),0)) -> 200 | J52: =IF(($G$46-SUM(K51:$M$51))>J51,J51,IF($G$46-SUM(K51:$M$51)>0,$G$46-SUM(K51:$M$51),0)) -> 50 | K52: =IF(($G$46-SUM(L51:$M$51))>K51,K51,IF($G$46-SUM(L51:$M$51)>0,$G$46-SUM(L51:$M$51),0)) -> 0 | L52: =IF(($G$46-SUM(M51:$M$51))>L51,L51,IF($G$46-SUM(M51:$M$51)>0,$G$46-SUM(M51:$M$51),0)) -> 0 | M52: =IF(($G$46-SUM($M51:N$51))>M51,M51,IF($G$46-SUM($M51:N$51)>0,$G$46-SUM($M51:N$51),0)) -> 0
C54: Average Price Calculation | D54: Calcul du tarif moyen | G54: Tarifs
C55: Residential LV Tariff | D55: Résidentiel | E55: DT/kWh | G55: 0.151 | H55: 0.184 | I55: 0.28 | J55: 0.35 | L55: 0 | M55: 0
C56: Commercial LV Tariff | D56: Commercial | E56: DT/kWh | G56: 0.151 | H56: 0.184 | I56: 0.25 | J56: 0.295 | L56: 0 | M56: 0
C57: Selected Tariff | D57: Tarif sélectionné | E57: DT/kWh | F57: Résidentiel | G57: =IF($F$57=$D$55,G55,G56) -> 0.151 | H57: =IF($F$57=$D$55,H55,H56) -> 0.184 | I57: 0.28 | J57: 0.35 | K57: 0 | L57: 0 | M57: 0
C58: Average Electricity Price | D58: Tarif d'électricité | E58: DT/kWh | G58: =SUMPRODUCT(G57:M57,G52:M52)/G46 -> 0.2307542293
C60: Price Forecast | D60: Projections de prix | G60: =YEAR(Ops_Start) -> 2015 | H60: =G60+1 -> 2016 | I60: =H60+1 -> 2017 | J60: =I60+1 -> 2018 | K60: =J60+1 -> 2019 | L60: 2020 | M60: 2021 | N60: 2022 | O60: 2023 | P60: 2024 | Q60: 2025 | R60: 2026 | S60: 2027 | T60: 2028 | U60: 2029 | V60: 2030 | W60: 2031 | X60: 2032 | Y60: 2033 | Z60: 2034 | AA60: 2035 | AB60: 2036 | AC60: 2037 | AD60: 2038 | AE60: 2039 | AF60: 2040 | AG60: 2041 | AH60: 2042
C61: Price Escalation | D61: Augmentation du prix | E61: % | G61: 0.1 | H61: 0.1 | I61: 0.1 | J61: 0.1 | K61: 0.1 | L61: =Scénario!G85 -> 0.05
C62: Escalated Price | D62: Prix avec augmentation | E62: DT/kWh | G62: =G58*(1+G61) -> 0.2538296522 | H62: =IF(H61="",G62*(1+$L$61),G62*(1+H61)) -> 0.2792126174 | I62: =IF(I61="",H62*(1+$L$61),H62*(1+I61)) -> 0.3071338792 | J62: 0.3378472671 | K62: 0.3716319938 | L62: 0.3902135935 | M62: 0.4097242731 | N62: 0.4302104868 | O62: 0.4517210111 | P62: 0.4743070617 | Q62: 0.4980224148 | R62: 0.5229235355 | S62: 0.5490697123 | T62: 0.5765231979 | U62: 0.6053493578 | V62: 0.6356168257 | W62: 0.667397667 | X62: 0.7007675503 | Y62: 0.7358059278 | Z62: 0.7725962242 | AA62: 0.8112260354 | AB62: 0.8517873372 | AC62: 0.8943767041 | AD62: 0.9390955393 | AE62: 0.9860503162 | AF62: 1.035352832 | AG62: 1.087120474 | AH62: 1.141476497
C63: VAT | D63: TVA | E63: % | F63: 0.12 | G63: =G62*$F$63 -> 0.03045955826 | H63: =H62*$F$63 -> 0.03350551409 | I63: 0.0368560655 | J63: 0.04054167205 | K63: 0.04459583925 | L63: 0.04682563122 | M63: 0.04916691278 | N63: 0.05162525842 | O63: 0.05420652134 | P63: 0.0569168474 | Q63: 0.05976268977 | R63: 0.06275082426 | S63: 0.06588836548 | T63: 0.06918278375 | U63: 0.07264192294 | V63: 0.07627401908 | W63: 0.08008772004 | X63: 0.08409210604 | Y63: 0.08829671134 | Z63: 0.09271154691 | AA63: 0.09734712425 | AB63: 0.1022144805 | AC63: 0.1073252045 | AD63: 0.1126914647 | AE63: 0.1183260379 | AF63: 0.1242423398 | AG63: 0.1304544568 | AH63: 0.1369771797
